Workbook

Sheet Pro_forma_1
A1: Lemonade Stand
A2: Sales growth | B2: 0.1
A3: Current assets/Sales | B3: 0.15
A4: Current liabilities/Sales | B4: 0.08
A5: Net fixed assets/Sales | B5: 0.77
A6: Costs of goods sold/Sales | B6: 0.5
A7: Depreciation rate | B7: 0.1
A8: Interest rate on debt | B8: 0.1
A9: Interest paid on cash and marketable securities | B9: 0.08
A10: Tax rate | B10: 0.4
A11: Dividend payout ratio | B11: 0.4
A13: Year | B13: 0 | C13: 1 | D13: 2 | E13: 3 | F13: 4 | G13: 5
A14: Income statement
A15: Sales | B15: 1000
A16: Costs of goods sold | B16: -500
A17: Interest payments on debt | B17: -32
A18: Interest earned on cash and marketable securities | B18: 6.4
A19: Depreciation | B19: -100
A20: Profit before tax | B20: 374.4
A21: Taxes | B21: -149.76
A22: Profit after tax | B22: 224.64
A23: Dividends | B23: -89.856
A24: Retained earnings | B24: 134.784
A26: Balance sheet
A27: Cash and marketable securities | B27: 80 | H27: ***Use Cash as the plug, i.e. it is used to make the balance sheet balance
A28: Current assets | B28: 150
A29: Fixed assets
A30: At cost | B30: 1070
A31: Depreciation | B31: -300
A32: Net fixed assets | B32: 770
A33: Total assets | B33: 1000
A35: Current liabilities | B35: 80
A36: Debt | B36: 320
A37: Stock | B37: 450
A38: Accumulated retained earnings | B38: 150
A39: Total liabilities and equity | B39: 1000
A42: Year | B42: 0 | C42: 1 | D42: 2 | E42: 3 | F42: 4 | G42: 5
A43: Free cash flow calculation
A44: Profit after tax
A45: Add back depreciation
A46: Subtract increase in current assets
A47: Add back increase in current liabilities
A48: Subtract increase in fixed assets at cost
A49: Add back after-tax interest on debt
A50: Subtract after-tax interest on cash and+A14 mkt. securities
A51: Free cash flow
A52: Use our EBIT formula
A53: CONSOLIDATED STATEMENT OF CASH FLOWS: RECONCILING THE CASH BALANCES
A54: Cash flow from operating activities
A55: Profit after tax
A56: Add back depreciation
A57: Adjust for changes in net working capital:
A58: Subtract increase in current assets
A59: Add back increase in current liabilities
A60: Net cash from operating activities
A62: Cash flow from investing activities
A63: Aquisitions of fixed assets--capital expenditures
A64: Purchases of investment securities
A65: Proceeds from sales of investment securities
A66: Net cash used in investing activities
A68: Cash flow from financing activities
A69: Net proceeds from borrowing activities
A70: Net proceeds from stock issues, repurchases
A71: Dividends paid
A72: Net cash from financing activities
A74: Net increase in cash and cash equivalents
A75: Check: changes in cash and mkt. securities

Sheet Pro_forma_2
A1: Lemonade Stand
A2: Sales growth | B2: 0.2
A3: Current assets/Sales | B3: 0.15
A4: Current liabilities/Sales | B4: 0.08
A5: Net fixed assets/Sales | B5: 0.8
A6: Costs of goods sold/Sales | B6: 0.5
A7: Depreciation rate | B7: 0.1
A8: Interest rate on debt | B8: 0.1
A9: Interest paid on cash and marketable securities | B9: 0.08
A10: Tax rate | B10: 0.4
A11: Dividend payout ratio | B11: 0.5
A13: Year | B13: 0 | C13: 1 | D13: 2 | E13: 3 | F13: 4 | G13: 5
A14: Income statement
A15: Sales | B15: 1000 | C15: =B15*(1+$B$2) -> 1200 | D15: =C15*(1+$B$2) -> 1440 | E15: =D15*(1+$B$2) -> 1728 | F15: =E15*(1+$B$2) -> 2073.6 | G15: =F15*(1+$B$2) -> 2488.32
A16: Costs of goods sold | B16: -500 | C16: =-C15*$B$6 -> -600 | D16: -720 | E16: -864 | F16: -1036.8 | G16: -1244.16
A17: Interest payments on debt | B17: -40 | C17: =-$B$8*(B36+C36)/2 -> -32 | D17: =-$B$8*(C36+D36)/2 -> -32 | E17: =-$B$8*(D36+E36)/2 -> -32 | F17: =-$B$8*(E36+F36)/2 -> -32 | G17: =-$B$8*(F36+G36)/2 -> -32
A18: Interest earned on cash and marketable securities | B18: 6.4 | C18: =$B$9*(B27+C27)/2 -> 3.608779033 | D18: =$B$9*(C27+D27)/2 -> -1.162127072 | E18: =$B$9*(D27+E27)/2 -> -5.580511604 | F18: =$B$9*(E27+F27)/2 -> -11.01981075 | G18: =$B$9*(F27+G27)/2 -> -17.70764851
A19: Depreciation | B19: -100 | C19: =-$B$7*(C30+B30)/2 -> -124.2105263 | D19: =-$B$7*(D30+C30)/2 -> -155.8116343 | E19: =-$B$7*(E30+D30)/2 -> -194.444438 | F19: =-$B$7*(F30+E30)/2 -> -241.5901683 | G19: =-$B$7*(G30+F30)/2 -> -299.034186
A20: Profit before tax | B20: 366.4 | C20: =SUM(C15:C19) -> 447.3982527 | D20: 531.0262386 | E20: 631.9750504 | F20: 752.190021 | G20: 895.4181655
A21: Taxes | B21: -146.56 | C21: =-C20*$B$10 -> -178.9593011 | D21: -212.4104954 | E21: -252.7900202 | F21: -300.8760084 | G21: -358.1672662
A22: Profit after tax | B22: 219.84 | C22: =C21+C20 -> 268.4389516 | D22: 318.6157431 | E22: 379.1850303 | F22: 451.3140126 | G22: 537.2508993
A23: Dividends | B23: -109.92 | C23: =-$B$11*C22 -> -134.2194758 | D23: =-$B$11*D22 -> -159.3078716 | E23: =-$B$11*E22 -> -189.5925151 | F23: =-$B$11*F22 -> -225.6570063 | G23: =-$B$11*G22 -> -268.6254497
A24: Retained earnings | B24: 109.92 | C24: =C23+C22 -> 134.2194758 | D24: 159.3078716 | E24: 189.5925151 | F24: 225.6570063 | G24: 268.6254497
A26: Balance sheet
A27: Cash and marketable securities | B27: 80 | C27: =C39-C32-C28 -> 10.21947582 | D27: =D39-D32-D28 -> -39.27265261 | E27: -100.2401375 | F27: -175.2551312 | G27: -267.4360815 | H27: Can't have Negative Cash
A28: Current assets | B28: 200 | C28: =C15*$B$3 -> 180 | D28: =D15*$B$3 -> 216 | E28: =E15*$B$3 -> 259.2 | F28: =F15*$B$3 -> 311.04 | G28: =G15*$B$3 -> 373.248
A29: Fixed assets
A30: At cost | B30: 1100 | C30: =C32-C31 -> 1384.210526 | D30: 1732.022161 | E30: 2156.866599 | F30: 2674.936767 | G30: 3305.746953
A31: Depreciation | B31: -300 | C31: =B31+C19 -> -424.2105263 | D31: =C31+D19 -> -580.0221607 | E31: =D31+E19 -> -774.4665986 | F31: =E31+F19 -> -1016.056767 | G31: =F31+G19 -> -1315.090953
A32: Net fixed assets | B32: 800 | C32: =C15*$B$5 -> 960 | D32: 1152 | E32: 1382.4 | F32: 1658.88 | G32: 1990.656
A33: Total assets | B33: 1080 | C33: =C32+C28+C27 -> 1150.219476 | D33: =D32+D28+D27 -> 1328.727347 | E33: =E32+E28+E27 -> 1541.359863 | F33: =F32+F28+F27 -> 1794.664869 | G33: =G32+G28+G27 -> 2096.467918
A35: Current liabilities | B35: 80 | C35: =C15*$B$4 -> 96 | D35: 115.2 | E35: 138.24 | F35: 165.888 | G35: 199.0656
A36: Debt | B36: 320 | C36: =B36 -> 320 | D36: =C36 -> 320 | E36: 320 | F36: 320 | G36: 320 | H36: Fix by taking on debt when cash goes to zero.
A37: Stock | B37: 450 | C37: 450 | D37: 450 | E37: 450 | F37: 450 | G37: 450
A38: Accumulated retained earnings | B38: 150 | C38: =B38+C24 -> 284.2194758 | D38: =C38+D24 -> 443.5273474 | E38: =D38+E24 -> 633.1198625 | F38: =E38+F24 -> 858.7768688 | G38: =F38+G24 -> 1127.402318
A39: Total liabilities and equity | B39: 1080 | C39: =SUM(C35:C38) -> 1150.219476 | D39: 1328.727347 | E39: 1541.359863 | F39: 1794.664869 | G39: 2096.467918
A42: Year | B42: 0 | C42: 1 | D42: 2 | E42: 3 | F42: 4 | G42: 5
A43: Free cash flow calculation
A44: Profit after tax | C44: =C22 -> 268.4389516 | D44: =D22 -> 318.6157431 | E44: =E22 -> 379.1850303 | F44: =F22 -> 451.3140126 | G44: =G22 -> 537.2508993
A45: Add back depreciation | C45: =-C19 -> 124.2105263 | D45: =-D19 -> 155.8116343 | E45: =-E19 -> 194.444438 | F45: =-F19 -> 241.5901683 | G45: =-G19 -> 299.034186
A46: Subtract increase in current assets | C46: =-(C28-B28) -> 20 | D46: =-(D28-C28) -> -36 | E46: =-(E28-D28) -> -43.2 | F46: =-(F28-E28) -> -51.84 | G46: =-(G28-F28) -> -62.208
A47: Add back increase in current liabilities | C47: =C35-B35 -> 16 | D47: =D35-C35 -> 19.2 | E47: =E35-D35 -> 23.04 | F47: =F35-E35 -> 27.648 | G47: =G35-F35 -> 33.1776
A48: Subtract increase in fixed assets at cost | C48: =-(C30-B30) -> -284.2105263 | D48: =-(D30-C30) -> -347.8116343 | E48: =-(E30-D30) -> -424.844438 | F48: =-(F30-E30) -> -518.0701683 | G48: =-(G30-F30) -> -630.810186
A49: Add back after-tax interest on debt | C49: =-(1-$B$10)*C17 -> 19.2 | D49: 19.2 | E49: 19.2 | F49: 19.2 | G49: 19.2
A50: Subtract after-tax interest on cash and+A14 mkt. securities | C50: -2.16526742 | D50: 0.6972762431 | E50: 3.348306962 | F50: 6.611886448 | G50: 10.62458911
A51: Free cash flow | C51: =SUM(C44:C50) -> 161.4736842 | D51: =SUM(D44:D50) -> 129.7130194 | E51: =SUM(E44:E50) -> 151.1733372 | F51: =SUM(F44:F50) -> 176.453899 | G51: =SUM(G44:G50) -> 206.2690884
A52: Use our EBIT formula | C52: =(C15+C16+C19)*(1-$B$10)+C45+SUM(C46:C48) -> 161.4736842 | D52: =(D15+D16+D19)*(1-$B$10)+D45+SUM(D46:D48) -> 129.7130194 | E52: 151.1733372 | F52: 176.453899 | G52: 206.2690884
A53: CONSOLIDATED STATEMENT OF CASH FLOWS: RECONCILING THE CASH BALANCES
A54: Cash flow from operating activities
A55: Profit after tax | C55: =C22 -> 268.4389516 | D55: =D22 -> 318.6157431 | E55: =E22 -> 379.1850303 | F55: =F22 -> 451.3140126 | G55: =G22 -> 537.2508993
A56: Add back depreciation | C56: =-C19 -> 124.2105263 | D56: =-D19 -> 155.8116343 | E56: =-E19 -> 194.444438 | F56: =-F19 -> 241.5901683 | G56: =-G19 -> 299.034186
A57: Adjust for changes in net working capital:
A58: Subtract increase in current assets | C58: =-(C28-B28) -> 20 | D58: =-(D28-C28) -> -36 | E58: =-(E28-D28) -> -43.2 | F58: =-(F28-E28) -> -51.84 | G58: =-(G28-F28) -> -62.208
A59: Add back increase in current liabilities | C59: =C35-B35 -> 16 | D59: =D35-C35 -> 19.2 | E59: =E35-D35 -> 23.04 | F59: =F35-E35 -> 27.648 | G59: =G35-F35 -> 33.1776
A60: Net cash from operating activities | C60: =SUM(C55:C59) -> 428.6494779 | D60: =SUM(D55:D59) -> 457.6273775 | E60: =SUM(E55:E59) -> 553.4694682 | F60: =SUM(F55:F59) -> 668.7121809 | G60: =SUM(G55:G59) -> 807.2546853
A62: Cash flow from investing activities
A63: Aquisitions of fixed assets--capital expenditures | C63: =-(C30-B30) -> -284.2105263 | D63: =-(D30-C30) -> -347.8116343 | E63: =-(E30-D30) -> -424.844438 | F63: =-(F30-E30) -> -518.0701683 | G63: =-(G30-F30) -> -630.810186
A64: Purchases of investment securities | C64: 0 | D64: 0 | E64: 0 | F64: 0 | G64: 0
A65: Proceeds from sales of investment securities | C65: 0 | D65: 0 | E65: 0 | F65: 0 | G65: 0
A66: Net cash used in investing activities | C66: =SUM(C63:C65) -> -284.2105263 | D66: =SUM(D63:D65) -> -347.8116343 | E66: =SUM(E63:E65) -> -424.844438 | F66: =SUM(F63:F65) -> -518.0701683 | G66: =SUM(G63:G65) -> -630.810186
A68: Cash flow from financing activities
A69: Net proceeds from borrowing activities | C69: =C36-B36 -> 0 | D69: 0 | E69: 0 | F69: 0 | G69: 0
A70: Net proceeds from stock issues, repurchases | C70: 0 | D70: 0 | E70: 0 | F70: 0 | G70: 0
A71: Dividends paid | C71: =C23 -> -134.2194758 | D71: =D23 -> -159.3078716 | E71: =E23 -> -189.5925151 | F71: =F23 -> -225.6570063 | G71: =G23 -> -268.6254497
A72: Net cash from financing activities | C72: =SUM(C69:C71) -> -134.2194758 | D72: =SUM(D69:D71) -> -159.3078716 | E72: =SUM(E69:E71) -> -189.5925151 | F72: =SUM(F69:F71) -> -225.6570063 | G72: =SUM(G69:G71) -> -268.6254497
A74: Net increase in cash and cash equivalents | C74: =C72+C66+C60 -> 10.21947582 | D74: =D72+D66+D60 -> -49.49212843 | E74: =E72+E66+E60 -> -60.96748487 | F74: =F72+F66+F60 -> -75.01499371 | G74: =G72+G66+G60 -> -92.18095035
A75: Check: changes in cash and mkt. securities | C75: =C27-B27 -> -69.78052418 | D75: =D27-C27 -> -49.49212843 | E75: =E27-D27 -> -60.96748487 | F75: =F27-E27 -> -75.01499371 | G75: =G27-F27 -> -92.18095035
C76: **Won't be even due to comparison to pre-forecast period

Sheet With_CB
A1: Lemonade Stand
A2: Sales growth | B2: 0.1
A3: Current assets/Sales | B3: 0.15
A4: Current liabilities/Sales | B4: 0.08
A5: Net fixed assets/Sales | B5: 0.77
A6: Costs of goods sold/Sales | B6: 0.5
A7: Depreciation rate | B7: 0.1
A8: Interest rate on debt | B8: 0.1
A9: Interest paid on cash and marketable securities | B9: 0.08
A10: Tax rate | B10: 0.4
A11: Dividend payout ratio | B11: 0.4
A12: Circuit Breaker | B12: OFF
A14: Year | B14: 0 | C14: 1 | D14: 2 | E14: 3 | F14: 4 | G14: 5
A15: Income statement
A16: Sales | B16: 1000 | C16: =B16*(1+$B$2) -> 1100 | D16: =C16*(1+$B$2) -> 1210 | E16: 1331 | F16: 1464.1 | G16: 1610.51
A17: Costs of goods sold | B17: -500 | C17: =-C16*$B$6 -> -550 | D17: =-D16*$B$6 -> -605 | E17: -665.5 | F17: -732.05 | G17: -805.255
A18: Interest payments on debt | B18: -32 | C18: =-$B$8*(C37+B37)/2 -> -32 | D18: =-$B$8*(D37+C37)/2 -> -32 | E18: -32 | F18: -32 | G18: -32
A19: Interest earned on cash and marketable securities | B19: 6.4 | C19: =$B$9*(C28+B28)/2 -> 8.947795625 | D19: =$B$9*(D28+C28)/2 -> 14.27670286 | E19: 20.08091336 | F19: 26.37673126 | G19: 33.17806883
A20: Depreciation | B20: -100 | C20: =-(C31+B31)/2*$B$7 -> -116.6842105 | D20: =-(D31+C31)/2*$B$7 -> -137.4772853 | E20: -161.3101575 | F20: -188.5879109 | G20: -219.7667804
A21: Profit before tax | B21: 374.4 | C21: =SUM(C16:C20) -> 410.2635851 | D21: =SUM(D16:D20) -> 449.7994175 | E21: 492.2707559 | F21: 537.8388204 | G21: 586.6662884
A22: Taxes | B22: -149.76 | C22: =-C21*$B$10 -> -164.105434 | D22: =-D21*$B$10 -> -179.919767 | E22: -196.9083024 | F22: -215.1355282 | G22: -234.6665154
A23: Profit after tax | B23: 224.64 | C23: =C21+C22 -> 246.1581511 | D23: =D21+D22 -> 269.8796505 | E23: 295.3624535 | F23: 322.7032922 | G23: 351.999773
A24: Dividends | B24: -89.856 | C24: =-C23*$B$11 -> -98.46326042 | D24: =-D23*$B$11 -> -107.9518602 | E24: -118.1449814 | F24: -129.0813169 | G24: -140.7999092
A25: Retained earnings | B25: 134.784 | C25: =C23+C24 -> 147.6948906 | D25: =D23+D24 -> 161.9277903 | E25: 177.2174721 | F25: 193.6219753 | G25: 211.1998638
A27: Balance sheet
A28: Cash and marketable securities | B28: 80 | C28: =IF($B$12="OFF",C40-C33-C29,0) -> 143.6948906 | D28: =IF($B$12="OFF",D40-D33-D29,0) -> 213.222681 | E28: 288.8001531 | F28: 370.6181284 | G28: 458.8335922
A29: Current assets | B29: 150 | C29: =C16*$B$3 -> 165 | D29: =D16*$B$3 -> 181.5 | E29: 199.65 | F29: 219.615 | G29: 241.5765
A30: Fixed assets
A31: At cost | B31: 1070 | C31: =IF($B$12="OFF",C33-C32,0) -> 1263.684211 | D31: =IF($B$12="OFF",D33-D32,0) -> 1485.861496 | E31: 1740.341653 | F31: 2031.416564 | G31: 2363.919045
A32: Depreciation | B32: -300 | C32: =B32+C20 -> -416.6842105 | D32: =C32+D20 -> -554.1614958 | E32: -715.4716533 | F32: -904.0595642 | G32: -1123.826345
A33: Net fixed assets | B33: 770 | C33: =C16*$B$5 -> 847 | D33: =D16*$B$5 -> 931.7 | E33: 1024.87 | F33: 1127.357 | G33: 1240.0927
A34: Total assets | B34: 1000 | C34: =C33+C29+C28 -> 1155.694891 | D34: =D33+D29+D28 -> 1326.422681 | E34: 1513.320153 | F34: 1717.590128 | G34: 1940.502792
A36: Current liabilities | B36: 80 | C36: =C16*$B$4 -> 88 | D36: =D16*$B$4 -> 96.8 | E36: 106.48 | F36: 117.128 | G36: 128.8408
A37: Debt | B37: 320 | C37: =B37 -> 320 | D37: =C37 -> 320 | E37: 320 | F37: 320 | G37: 320
A38: Stock | B38: 450 | C38: =B38 -> 450 | D38: =C38 -> 450 | E38: 450 | F38: 450 | G38: 450
A39: Accumulated retained earnings | B39: 150 | C39: =B39+C25 -> 297.6948906 | D39: =C39+D25 -> 459.622681 | E39: 636.8401531 | F39: 830.4621284 | G39: 1041.661992
A40: Total liabilities and equity | B40: 1000 | C40: =SUM(C36:C39) -> 1155.694891 | D40: =SUM(D36:D39) -> 1326.422681 | E40: 1513.320153 | F40: 1717.590128 | G40: 1940.502792
A43: Year | B43: 0 | C43: 1 | D43: 2 | E43: 3 | F43: 4 | G43: 5
A44: Free cash flow calculation
A45: Profit after tax | C45: =C23 -> 246.1581511 | D45: =D23 -> 269.8796505 | E45: =E23 -> 295.3624535 | F45: =F23 -> 322.7032922 | G45: =G23 -> 351.999773
A46: Add back depreciation | C46: =-C20 -> 116.6842105 | D46: =-D20 -> 137.4772853 | E46: =-E20 -> 161.3101575 | F46: =-F20 -> 188.5879109 | G46: =-G20 -> 219.7667804
A47: Subtract increase in current assets | C47: =-(C29-B29) -> -15 | D47: =-(D29-C29) -> -16.5 | E47: =-(E29-D29) -> -18.15 | F47: =-(F29-E29) -> -19.965 | G47: =-(G29-F29) -> -21.9615
A48: Add back increase in current liabilities | C48: =C36-B36 -> 8 | D48: =D36-C36 -> 8.8 | E48: =E36-D36 -> 9.68 | F48: =F36-E36 -> 10.648 | G48: =G36-F36 -> 11.7128
A49: Subtract increase in fixed assets at cost | C49: =-(C31-B31) -> -193.6842105 | D49: =-(D31-C31) -> -222.1772853 | E49: =-(E31-D31) -> -254.4801575 | F49: =-(F31-E31) -> -291.0749109 | G49: =-(G31-F31) -> -332.5024804
A50: Add back after-tax interest on debt | C50: =-(1-$B$10)*C18 -> 19.2 | D50: 19.2 | E50: 19.2 | F50: 19.2 | G50: 19.2
A51: Subtract after-tax interest on cash and+A14 mkt. securities | C51: -5.368677375 | D51: -8.566021718 | E51: -12.04854802 | F51: -15.82603876 | G51: -19.9068413
A52: Free cash flow | C52: =SUM(C45:C51) -> 175.9894737 | D52: =SUM(D45:D51) -> 188.1136288 | E52: =SUM(E45:E51) -> 200.8739055 | F52: =SUM(F45:F51) -> 214.2732535 | G52: =SUM(G45:G51) -> 228.3085317
A53: Use our EBIT formula | C53: =(C16+C17+C20)*(1-$B$10)+C46+SUM(C47:C49) -> 175.9894737 | D53: =(D16+D17+D20)*(1-$B$10)+D46+SUM(D47:D49) -> 188.1136288 | E53: 200.8739055 | F53: 214.2732535 | G53: 228.3085317
A54: CONSOLIDATED STATEMENT OF CASH FLOWS: RECONCILING THE CASH BALANCES
A55: Cash flow from operating activities
A56: Profit after tax | C56: =C23 -> 246.1581511 | D56: =D23 -> 269.8796505 | E56: 295.3624535 | F56: 322.7032922 | G56: 351.999773
A57: Add back depreciation | C57: =-C20 -> 116.6842105 | D57: =-D20 -> 137.4772853 | E57: 161.3101575 | F57: 188.5879109 | G57: 219.7667804
A58: Adjust for changes in net working capital:
A59: Subtract increase in current assets | C59: =-(C29-B29) -> -15 | D59: =-(D29-C29) -> -16.5 | E59: -18.15 | F59: -19.965 | G59: -21.9615
A60: Add back increase in current liabilities | C60: =C36-B36 -> 8 | D60: =D36-C36 -> 8.8 | E60: 9.68 | F60: 10.648 | G60: 11.7128
A61: Net cash from operating activities | C61: =SUM(C56:C60) -> 355.8423616 | D61: =SUM(D56:D60) -> 399.6569358 | E61: 448.202611 | F61: 501.9742031 | G61: 561.5178535
A63: Cash flow from investing activities
A64: Aquisitions of fixed assets--capital expenditures | C64: =-(C31-B31) -> -193.6842105 | D64: =-(D31-C31) -> -222.1772853 | E64: -254.4801575 | F64: -291.0749109 | G64: -332.5024804
A65: Purchases of investment securities | C65: 0 | D65: 0 | E65: 0 | F65: 0 | G65: 0
A66: Proceeds from sales of investment securities | C66: 0 | D66: 0 | E66: 0 | F66: 0 | G66: 0
A67: Net cash used in investing activities | C67: =SUM(C64:C66) -> -193.6842105 | D67: =SUM(D64:D66) -> -222.1772853 | E67: -254.4801575 | F67: -291.0749109 | G67: -332.5024804
A69: Cash flow from financing activities
A70: Net proceeds from borrowing activities | C70: =C37-B37 -> 0 | D70: =D37-C37 -> 0 | E70: 0 | F70: 0 | G70: 0
A71: Net proceeds from stock issues, repurchases | C71: =C38-B38 -> 0 | D71: =D38-C38 -> 0 | E71: 0 | F71: 0 | G71: 0
A72: Dividends paid | C72: =C24 -> -98.46326042 | D72: =D24 -> -107.9518602 | E72: -118.1449814 | F72: -129.0813169 | G72: -140.7999092
A73: Net cash from financing activities | C73: =SUM(C70:C72) -> -98.46326042 | D73: =SUM(D70:D72) -> -107.9518602 | E73: -118.1449814 | F73: -129.0813169 | G73: -140.7999092
A75: Net increase in cash and cash equivalents | C75: =C73+C67+C61 -> 63.69489064 | D75: =D73+D67+D61 -> 69.52779032 | E75: 75.57747213 | F75: 81.81797534 | G75: 88.21546382
A76: Check: changes in cash and mkt. securities | C76: =C28-B28 -> 63.69489064 | D76: =D28-C28 -> 69.52779032 | E76: 75.57747213 | F76: 81.81797534 | G76: 88.21546382

Sheet Answer_1
A1: Lemonade Stand
A2: Sales growth | B2: 0.1
A3: Current assets/Sales | B3: 0.15
A4: Current liabilities/Sales | B4: 0.08
A5: Net fixed assets/Sales | B5: 0.77
A6: Costs of goods sold/Sales | B6: 0.5
A7: Depreciation rate | B7: 0.1
A8: Interest rate on debt | B8: 0.1
A9: Interest paid on cash and marketable securities | B9: 0.08
A10: Tax rate | B10: 0.4
A11: Dividend payout ratio | B11: 0.4
A13: Year | B13: 0 | C13: 1 | D13: 2 | E13: 3 | F13: 4 | G13: 5
A14: Income statement
A15: Sales | B15: 1000 | C15: =B15*(1+$B$2) -> 1100 | D15: =C15*(1+$B$2) -> 1210 | E15: =D15*(1+$B$2) -> 1331 | F15: =E15*(1+$B$2) -> 1464.1 | G15: =F15*(1+$B$2) -> 1610.51 | H15: =getformula(G15) -> <-- =F15*(1+$B$2)
A16: Costs of goods sold | B16: -500 | C16: =-C15*$B$6 -> -550 | D16: -605 | E16: -665.5 | F16: -732.05 | G16: -805.255 | H16: =getformula(G16) -> <-- =-G15*$B$6
A17: Interest payments on debt | B17: -40 | C17: =-$B$8*(B36+C36)/2 -> -32 | D17: =-$B$8*(C36+D36)/2 -> -32 | E17: =-$B$8*(D36+E36)/2 -> -32 | F17: =-$B$8*(E36+F36)/2 -> -32 | G17: =-$B$8*(F36+G36)/2 -> -32 | H17: <-- =-$B$8*(F36+G36)/2
A18: Interest earned on cash and marketable securities | B18: 6.4 | C18: =$B$9*(B27+C27)/2 -> 8.924726589 | D18: =$B$9*(C27+D27)/2 -> 14.22746238 | E18: =$B$9*(D27+E27)/2 -> 20.02512178 | F18: =$B$9*(E27+F27)/2 -> 26.31365902 | G18: =$B$9*(F27+G27)/2 -> 33.1069084 | H18: <-- =$B$9*(F27+G27)/2
A19: Depreciation | B19: -100 | C19: =-$B$7*(C30+B30)/2 -> -118.2631579 | D19: =-$B$7*(D30+C30)/2 -> -137.6434903 | E19: =-$B$7*(E30+D30)/2 -> -161.4938577 | F19: =-$B$7*(F30+E30)/2 -> -188.790948 | G19: =-$B$7*(G30+F30)/2 -> -219.9911899 | H19: <-- =-$B$7*(G30+F30)/2
A20: Profit before tax | B20: 366.4 | C20: =SUM(C15:C19) -> 408.6615687 | D20: 449.5839721 | E20: 492.0312641 | F20: 537.572711 | G20: 586.3707185 | H20: <-- =SUM(G15:G19)
A21: Taxes | B21: -146.56 | C21: =-C20*$B$10 -> -163.4646275 | D21: -179.8335888 | E21: -196.8125056 | F21: -215.0290844 | G21: -234.5482874 | H21: <-- =-G20*$B$10
A22: Profit after tax | B22: 219.84 | C22: =C21+C20 -> 245.1969412 | D22: 269.7503832 | E22: 295.2187584 | F22: 322.5436266 | G22: 351.8224311 | H22: <-- =G21+G20
A23: Dividends | B23: -109.92 | C23: =-$B$11*C22 -> -98.07877649 | D23: =-$B$11*D22 -> -107.9001533 | E23: =-$B$11*E22 -> -118.0875034 | F23: =-$B$11*F22 -> -129.0174506 | G23: =-$B$11*G22 -> -140.7289724 | H23: <-- =-$B$11*G22
A24: Retained earnings | B24: 109.92 | C24: =C23+C22 -> 147.1181647 | D24: 161.8502299 | E24: 177.1312551 | F24: 193.526176 | G24: 211.0934587 | H24: <-- =G23+G22
A26: Balance sheet
A27: Cash and marketable securities | B27: 80 | C27: =C39-C32-C28 -> 143.1181647 | D27: =D39-D32-D28 -> 212.5683947 | E27: 288.0596497 | F27: 369.7818257 | G27: 457.8908844 | H27: <-- =G39-G32-G28
A28: Current assets | B28: 200 | C28: =C15*$B$3 -> 165 | D28: =D15*$B$3 -> 181.5 | E28: =E15*$B$3 -> 199.65 | F28: =F15*$B$3 -> 219.615 | G28: =G15*$B$3 -> 241.5765 | H28: <-- =G15*$B$3
A29: Fixed assets
A30: At cost | B30: 1100 | C30: =C32-C31 -> 1265.263158 | D30: 1487.606648 | E30: 1742.270506 | F30: 2033.548454 | G30: 2366.275344 | H30: <-- =G32-G31
A31: Depreciation | B31: -300 | C31: =B31+C19 -> -418.2631579 | D31: =C31+D19 -> -555.9066482 | E31: =D31+E19 -> -717.4005059 | F31: =E31+F19 -> -906.1914539 | G31: =F31+G19 -> -1126.182644 | H31: <-- =F31+G19
A32: Net fixed assets | B32: 800 | C32: =C15*$B$5 -> 847 | D32: 931.7 | E32: 1024.87 | F32: 1127.357 | G32: 1240.0927 | H32: <-- =G15*$B$5
A33: Total assets | B33: 1080 | C33: =C32+C28+C27 -> 1155.118165 | D33: =D32+D28+D27 -> 1325.768395 | E33: =E32+E28+E27 -> 1512.57965 | F33: =F32+F28+F27 -> 1716.753826 | G33: =G32+G28+G27 -> 1939.560084 | H33: <-- =G32+G28+G27
A35: Current liabilities | B35: 80 | C35: =C15*$B$4 -> 88 | D35: 96.8 | E35: 106.48 | F35: 117.128 | G35: 128.8408 | H35: <-- =G15*$B$4
A36: Debt | B36: 320 | C36: =B36 -> 320 | D36: =C36 -> 320 | E36: 320 | F36: 320 | G36: 320 | H36: <-- =F36
A37: Stock | B37: 450 | C37: 450 | D37: 450 | E37: 450 | F37: 450 | G37: 450 | H37: <-- =F37
A38: Accumulated retained earnings | B38: 150 | C38: =B38+C24 -> 297.1181647 | D38: =C38+D24 -> 458.9683947 | E38: =D38+E24 -> 636.0996497 | F38: =E38+F24 -> 829.6258257 | G38: =F38+G24 -> 1040.719284 | H38: <-- =F38+G24
A39: Total liabilities and equity | B39: 1080 | C39: =SUM(C35:C38) -> 1155.118165 | D39: 1325.768395 | E39: 1512.57965 | F39: 1716.753826 | G39: 1939.560084 | H39: <-- =SUM(G35:G38)
A42: Year | B42: 0 | C42: 1 | D42: 2 | E42: 3 | F42: 4 | G42: 5
A43: Free cash flow calculation
A44: Profit after tax | C44: =C22 -> 245.1969412 | D44: =D22 -> 269.7503832 | E44: =E22 -> 295.2187584 | F44: =F22 -> 322.5436266 | G44: =G22 -> 351.8224311 | H44: <-- =G22
A45: Add back depreciation | C45: =-C19 -> 118.2631579 | D45: =-D19 -> 137.6434903 | E45: =-E19 -> 161.4938577 | F45: =-F19 -> 188.790948 | G45: =-G19 -> 219.9911899 | H45: <-- =-G19
A46: Subtract increase in current assets | C46: =-(C28-B28) -> 35 | D46: =-(D28-C28) -> -16.5 | E46: =-(E28-D28) -> -18.15 | F46: =-(F28-E28) -> -19.965 | G46: =-(G28-F28) -> -21.9615 | H46: <-- =-(G28-F28)
A47: Add back increase in current liabilities | C47: =C35-B35 -> 8 | D47: =D35-C35 -> 8.8 | E47: =E35-D35 -> 9.68 | F47: =F35-E35 -> 10.648 | G47: =G35-F35 -> 11.7128 | H47: <-- =G35-F35
A48: Subtract increase in fixed assets at cost | C48: =-(C30-B30) -> -165.2631579 | D48: =-(D30-C30) -> -222.3434903 | E48: =-(E30-D30) -> -254.6638577 | F48: =-(F30-E30) -> -291.277948 | G48: =-(G30-F30) -> -332.7268899 | H48: <-- =-(G30-F30)
A49: Add back after-tax interest on debt | C49: =-(1-$B$10)*C17 -> 19.2 | D49: 19.2 | E49: 19.2 | F49: 19.2 | G49: 19.2 | H49: <-- =-(1-$B$10)*G17
A50: Subtract after-tax interest on cash and+A14 mkt. securities | C50: -5.354835954 | D50: -8.536477426 | E50: -12.01507307 | F50: -15.78819541 | G50: -19.86414504 | H50: <-- =-(1-$B$10)*G18
A51: Free cash flow | C51: =SUM(C44:C50) -> 255.0421053 | D51: =SUM(D44:D50) -> 188.0139058 | E51: =SUM(E44:E50) -> 200.7636854 | F51: =SUM(F44:F50) -> 214.1514312 | G51: =SUM(G44:G50) -> 228.1738861 | H51: <-- =SUM(G44:G50)
A52: Use our EBIT formula | C52: =(C15+C16+C19)*(1-$B$10)+C45+SUM(C46:C48) -> 255.0421053 | D52: =(D15+D16+D19)*(1-$B$10)+D45+SUM(D46:D48) -> 188.0139058 | E52: 200.7636854 | F52: 214.1514312 | G52: 228.1738861 | H52: <-- =(G15+G16+G19)*(1-$B$10)+G45+SUM(G46:G48)
A53: CONSOLIDATED STATEMENT OF CASH FLOWS: RECONCILING THE CASH BALANCES
A54: Cash flow from operating activities
A55: Profit after tax | C55: =C22 -> 245.1969412 | D55: =D22 -> 269.7503832 | E55: =E22 -> 295.2187584 | F55: =F22 -> 322.5436266 | G55: =G22 -> 351.8224311 | H55: <-- =G22
A56: Add back depreciation | C56: =-C19 -> 118.2631579 | D56: =-D19 -> 137.6434903 | E56: =-E19 -> 161.4938577 | F56: =-F19 -> 188.790948 | G56: =-G19 -> 219.9911899 | H56: <-- =-G19
A57: Adjust for changes in net working capital:
A58: Subtract increase in current assets | C58: =-(C28-B28) -> 35 | D58: =-(D28-C28) -> -16.5 | E58: =-(E28-D28) -> -18.15 | F58: =-(F28-E28) -> -19.965 | G58: =-(G28-F28) -> -21.9615 | H58: <-- =-(G28-F28)
A59: Add back increase in current liabilities | C59: =C35-B35 -> 8 | D59: =D35-C35 -> 8.8 | E59: =E35-D35 -> 9.68 | F59: =F35-E35 -> 10.648 | G59: =G35-F35 -> 11.7128 | H59: <-- =G35-F35
A60: Net cash from operating activities | C60: =SUM(C55:C59) -> 406.4600991 | D60: =SUM(D55:D59) -> 399.6938735 | E60: =SUM(E55:E59) -> 448.2426161 | F60: =SUM(F55:F59) -> 502.0175746 | G60: =SUM(G55:G59) -> 561.564921 | H60: <-- =SUM(G55:G59)
A62: Cash flow from investing activities
A63: Aquisitions of fixed assets--capital expenditures | C63: =-(C30-B30) -> -165.2631579 | D63: =-(D30-C30) -> -222.3434903 | E63: =-(E30-D30) -> -254.6638577 | F63: =-(F30-E30) -> -291.277948 | G63: =-(G30-F30) -> -332.7268899 | H63: <-- =-(G30-F30)
A64: Purchases of investment securities | C64: 0 | D64: 0 | E64: 0 | F64: 0 | G64: 0 | H64: <-- Not in our model
A65: Proceeds from sales of investment securities | C65: 0 | D65: 0 | E65: 0 | F65: 0 | G65: 0 | H65: <-- Not in our model
A66: Net cash used in investing activities | C66: =SUM(C63:C65) -> -165.2631579 | D66: =SUM(D63:D65) -> -222.3434903 | E66: =SUM(E63:E65) -> -254.6638577 | F66: =SUM(F63:F65) -> -291.277948 | G66: =SUM(G63:G65) -> -332.7268899 | H66: <-- =SUM(G63:G65)
A68: Cash flow from financing activities
A69: Net proceeds from borrowing activities | C69: =C36-B36 -> 0 | D69: 0 | E69: 0 | F69: 0 | G69: 0 | H69: <-- =G36-F36
A70: Net proceeds from stock issues, repurchases | C70: 0 | D70: 0 | E70: 0 | F70: 0 | G70: 0 | H70: <-- =G37-F37
A71: Dividends paid | C71: =C23 -> -98.07877649 | D71: =D23 -> -107.9001533 | E71: =E23 -> -118.0875034 | F71: =F23 -> -129.0174506 | G71: =G23 -> -140.7289724 | H71: <-- =G23
A72: Net cash from financing activities | C72: =SUM(C69:C71) -> -98.07877649 | D72: =SUM(D69:D71) -> -107.9001533 | E72: =SUM(E69:E71) -> -118.0875034 | F72: =SUM(F69:F71) -> -129.0174506 | G72: =SUM(G69:G71) -> -140.7289724 | H72: <-- =SUM(G69:G71)
A74: Net increase in cash and cash equivalents | C74: =C72+C66+C60 -> 143.1181647 | D74: =D72+D66+D60 -> 69.45022995 | E74: =E72+E66+E60 -> 75.49125507 | F74: =F72+F66+F60 -> 81.72217597 | G74: =G72+G66+G60 -> 88.10905867 | H74: <-- =G72+G66+G60
A75: Check: changes in cash and mkt. securities | C75: =C27-B27 -> 63.11816473 | D75: =D27-C27 -> 69.45022995 | E75: =E27-D27 -> 75.49125507 | F75: =F27-E27 -> 81.72217597 | G75: =G27-F27 -> 88.10905867 | H75: <-- =G27-F27
C76: **Won't be even due to comparison to pre-forecast period

Sheet Answer_2
A1: Lemonade Stand
A2: Sales growth | B2: 0.2
A3: Current assets/Sales | B3: 0.15
A4: Current liabilities/Sales | B4: 0.08
A5: Net fixed assets/Sales | B5: 0.8
A6: Costs of goods sold/Sales | B6: 0.5
A7: Depreciation rate | B7: 0.1
A8: Interest rate on debt | B8: 0.1
A9: Interest paid on cash and marketable securities | B9: 0.08
A10: Tax rate | B10: 0.4
A11: Dividend payout ratio | B11: 0.5
A13: Year | B13: 0 | C13: 1 | D13: 2 | E13: 3 | F13: 4 | G13: 5
A14: Income statement
A15: Sales | B15: 1000 | C15: =B15*(1+$B$2) -> 1200 | D15: =C15*(1+$B$2) -> 1440 | E15: =D15*(1+$B$2) -> 1728 | F15: =E15*(1+$B$2) -> 2073.6 | G15: =F15*(1+$B$2) -> 2488.32 | H15: =getformula(G15) -> <-- =F15*(1+$B$2)
A16: Costs of goods sold | B16: -500 | C16: =-C15*$B$6 -> -600 | D16: -720 | E16: -864 | F16: -1036.8 | G16: -1244.16 | H16: =getformula(G16) -> <-- =-G15*$B$6
A17: Interest payments on debt | B17: -40 | C17: =-$B$8*(B36+C36)/2 -> -32 | D17: =-$B$8*(C36+D36)/2 -> -33.96961324 | E17: =-$B$8*(D36+E36)/2 -> -39.00902847 | F17: =-$B$8*(E36+F36)/2 -> -45.87236852 | G17: =-$B$8*(F36+G36)/2 -> -54.34450697 | H17: <-- =-$B$8*(F36+G36)/2
A18: Interest earned on cash and marketable securities | B18: 6.4 | C18: =$B$9*(B27+C27)/2 -> 3.608779033 | D18: =$B$9*(C27+D27)/2 -> 0.4087790326 | E18: =$B$9*(D27+E27)/2 -> 0 | F18: =$B$9*(E27+F27)/2 -> 0 | G18: =$B$9*(F27+G27)/2 -> 0 | H18: <-- =$B$9*(F27+G27)/2
A19: Depreciation | B19: -100 | C19: =-$B$7*(C30+B30)/2 -> -124.2105263 | D19: =-$B$7*(D30+C30)/2 -> -155.8116343 | E19: =-$B$7*(E30+D30)/2 -> -194.444438 | F19: =-$B$7*(F30+E30)/2 -> -241.5901683 | G19: =-$B$7*(G30+F30)/2 -> -299.034186 | H19: <-- =-$B$7*(G30+F30)/2
A20: Profit before tax | B20: 366.4 | C20: =SUM(C15:C19) -> 447.3982527 | D20: 530.6275314 | E20: 630.5465336 | F20: 749.3374632 | G20: 890.781307 | H20: <-- =SUM(G15:G19)
A21: Taxes | B21: -146.56 | C21: =-C20*$B$10 -> -178.9593011 | D21: -212.2510126 | E21: -252.2186134 | F21: -299.7349853 | G21: -356.3125228 | H21: <-- =-G20*$B$10
A22: Profit after tax | B22: 219.84 | C22: =C21+C20 -> 268.4389516 | D22: 318.3765189 | E22: 378.3279201 | F22: 449.6024779 | G22: 534.4687842 | H22: <-- =G21+G20
A23: Dividends | B23: -109.92 | C23: =-$B$11*C22 -> -134.2194758 | D23: =-$B$11*D22 -> -159.1882594 | E23: =-$B$11*E22 -> -189.1639601 | F23: =-$B$11*F22 -> -224.801239 | G23: =-$B$11*G22 -> -267.2343921 | H23: <-- =-$B$11*G22
A24: Retained earnings | B24: 109.92 | C24: =C23+C22 -> 134.2194758 | D24: 159.1882594 | E24: 189.1639601 | F24: 224.801239 | G24: 267.2343921 | H24: <-- =G23+G22
H25: <--
A26: Balance sheet | H26: <--
A27: Cash and marketable securities | B27: 80 | C27: =C39-C32-C28 -> 10.21947582 | D27: =D39-D32-D28 -> 0 | E27: 0 | F27: 0 | G27: 0 | H27: <-- =G39-G32-G28
A28: Current assets | B28: 200 | C28: =C15*$B$3 -> 180 | D28: =D15*$B$3 -> 216 | E28: =E15*$B$3 -> 259.2 | F28: =F15*$B$3 -> 311.04 | G28: =G15*$B$3 -> 373.248 | H28: <-- =G15*$B$3
A29: Fixed assets | H29: <--
A30: At cost | B30: 1100 | C30: =C32-C31 -> 1384.210526 | D30: 1732.022161 | E30: 2156.866599 | F30: 2674.936767 | G30: 3305.746953 | H30: <-- =G32-G31
A31: Depreciation | B31: -300 | C31: =B31+C19 -> -424.2105263 | D31: =C31+D19 -> -580.0221607 | E31: =D31+E19 -> -774.4665986 | F31: =E31+F19 -> -1016.056767 | G31: =F31+G19 -> -1315.090953 | H31: <-- =F31+G19
A32: Net fixed assets | B32: 800 | C32: =C15*$B$5 -> 960 | D32: 1152 | E32: 1382.4 | F32: 1658.88 | G32: 1990.656 | H32: <-- =G15*$B$5
A33: Total assets | B33: 1080 | C33: =C32+C28+C27 -> 1150.219476 | D33: =D32+D28+D27 -> 1368 | E33: =E32+E28+E27 -> 1641.6 | F33: =F32+F28+F27 -> 1969.92 | G33: =G32+G28+G27 -> 2363.904 | H33: <-- =G32+G28+G27
H34: <--
A35: Current liabilities | B35: 80 | C35: =C15*$B$4 -> 96 | D35: 115.2 | E35: 138.24 | F35: 165.888 | G35: 199.0656 | H35: <-- =G15*$B$4
A36: Debt | B36: 320 | C36: =MAX(C28+C32-C35-C37-C38,B36) -> 320 | D36: =MAX(D28+D32-D35-D37-D38,C36) -> 359.3922648 | E36: 420.7883047 | F36: 496.6590657 | G36: 590.2310736 | H36: <-- =MAX(G28+G32-G35-G37-G38,F36)
A37: Stock | B37: 450 | C37: =B37 -> 450 | D37: 450 | E37: 450 | F37: 450 | G37: 450 | H37: <-- =F37
A38: Accumulated retained earnings | B38: 150 | C38: =B38+C24 -> 284.2194758 | D38: =C38+D24 -> 443.4077352 | E38: =D38+E24 -> 632.5716953 | F38: =E38+F24 -> 857.3729343 | G38: =F38+G24 -> 1124.607326 | H38: <-- =F38+G24
A39: Total liabilities and equity | B39: 1080 | C39: =SUM(C35:C38) -> 1150.219476 | D39: 1368 | E39: 1641.6 | F39: 1969.92 | G39: 2363.904 | H39: <-- =SUM(G35:G38)
H40: <--
H41: <--
A42: Year | B42: 0 | C42: 1 | D42: 2 | E42: 3 | F42: 4 | G42: 5 | H42: <-- 5
A43: Free cash flow calculation | H43: <--
A44: Profit after tax | C44: =C22 -> 268.4389516 | D44: =D22 -> 318.3765189 | E44: =E22 -> 378.3279201 | F44: =F22 -> 449.6024779 | G44: =G22 -> 534.4687842 | H44: <-- =G22
A45: Add back depreciation | C45: =-C19 -> 124.2105263 | D45: =-D19 -> 155.8116343 | E45: =-E19 -> 194.444438 | F45: =-F19 -> 241.5901683 | G45: =-G19 -> 299.034186 | H45: <-- =-G19
A46: Subtract increase in current assets | C46: =-(C28-B28) -> 20 | D46: =-(D28-C28) -> -36 | E46: =-(E28-D28) -> -43.2 | F46: =-(F28-E28) -> -51.84 | G46: =-(G28-F28) -> -62.208 | H46: <-- =-(G28-F28)
A47: Add back increase in current liabilities | C47: =C35-B35 -> 16 | D47: =D35-C35 -> 19.2 | E47: =E35-D35 -> 23.04 | F47: =F35-E35 -> 27.648 | G47: =G35-F35 -> 33.1776 | H47: <-- =G35-F35
A48: Subtract increase in fixed assets at cost | C48: =-(C30-B30) -> -284.2105263 | D48: =-(D30-C30) -> -347.8116343 | E48: =-(E30-D30) -> -424.844438 | F48: =-(F30-E30) -> -518.0701683 | G48: =-(G30-F30) -> -630.810186 | H48: <-- =-(G30-F30)
A49: Add back after-tax interest on debt | C49: =-(1-$B$10)*C17 -> 19.2 | D49: 20.38176794 | E49: 23.40541708 | F49: 27.52342111 | G49: 32.60670418 | H49: <-- =-(1-$B$10)*G17
A50: Subtract after-tax interest on cash and+A14 mkt. securities | C50: -2.16526742 | D50: -0.2452674196 | E50: 0 | F50: 0 | G50: 0 | H50: <-- =-(1-$B$10)*G18
A51: Free cash flow | C51: =SUM(C44:C50) -> 161.4736842 | D51: =SUM(D44:D50) -> 129.7130194 | E51: =SUM(E44:E50) -> 151.1733372 | F51: =SUM(F44:F50) -> 176.453899 | G51: =SUM(G44:G50) -> 206.2690884 | H51: <-- =SUM(G44:G50)
A52: Use our EBIT formula | C52: =(C15+C16+C19)*(1-$B$10)+C45+SUM(C46:C48) -> 161.4736842 | D52: =(D15+D16+D19)*(1-$B$10)+D45+SUM(D46:D48) -> 129.7130194 | E52: 151.1733372 | F52: 176.453899 | G52: 206.2690884 | H52: <-- =(G15+G16+G19)*(1-$B$10)+G45+SUM(G46:G48)
A53: CONSOLIDATED STATEMENT OF CASH FLOWS: RECONCILING THE CASH BALANCES | H53: <--
A54: Cash flow from operating activities | H54: <--
A55: Profit after tax | C55: =C22 -> 268.4389516 | D55: =D22 -> 318.3765189 | E55: =E22 -> 378.3279201 | F55: =F22 -> 449.6024779 | G55: =G22 -> 534.4687842 | H55: <-- =G22
A56: Add back depreciation | C56: =-C19 -> 124.2105263 | D56: =-D19 -> 155.8116343 | E56: =-E19 -> 194.444438 | F56: =-F19 -> 241.5901683 | G56: =-G19 -> 299.034186 | H56: <-- =-G19
A57: Adjust for changes in net working capital: | H57: <--
A58: Subtract increase in current assets | C58: =-(C28-B28) -> 20 | D58: =-(D28-C28) -> -36 | E58: =-(E28-D28) -> -43.2 | F58: =-(F28-E28) -> -51.84 | G58: =-(G28-F28) -> -62.208 | H58: <-- =-(G28-F28)
A59: Add back increase in current liabilities | C59: =C35-B35 -> 16 | D59: =D35-C35 -> 19.2 | E59: =E35-D35 -> 23.04 | F59: =F35-E35 -> 27.648 | G59: =G35-F35 -> 33.1776 | H59: <-- =G35-F35
A60: Net cash from operating activities | C60: =SUM(C55:C59) -> 428.6494779 | D60: =SUM(D55:D59) -> 457.3881532 | E60: =SUM(E55:E59) -> 552.6123581 | F60: =SUM(F55:F59) -> 667.0006462 | G60: =SUM(G55:G59) -> 804.4725702 | H60: <-- =SUM(G55:G59)
H61: <--
A62: Cash flow from investing activities | H62: <--
A63: Aquisitions of fixed assets--capital expenditures | C63: =-(C30-B30) -> -284.2105263 | D63: =-(D30-C30) -> -347.8116343 | E63: =-(E30-D30) -> -424.844438 | F63: =-(F30-E30) -> -518.0701683 | G63: =-(G30-F30) -> -630.810186 | H63: <-- =-(G30-F30)
A64: Purchases of investment securities | C64: 0 | D64: 0 | E64: 0 | F64: 0 | G64: 0 | H64: <-- 0
A65: Proceeds from sales of investment securities | C65: 0 | D65: 0 | E65: 0 | F65: 0 | G65: 0 | H65: <-- 0
A66: Net cash used in investing activities | C66: =SUM(C63:C65) -> -284.2105263 | D66: =SUM(D63:D65) -> -347.8116343 | E66: =SUM(E63:E65) -> -424.844438 | F66: =SUM(F63:F65) -> -518.0701683 | G66: =SUM(G63:G65) -> -630.810186 | H66: <-- =SUM(G63:G65)
H67: <--
A68: Cash flow from financing activities | H68: <--
A69: Net proceeds from borrowing activities | C69: =C36-B36 -> 0 | D69: 39.39226475 | E69: 61.39603993 | F69: 75.87076104 | G69: 93.57200789 | H69: <-- =G36-F36
A70: Net proceeds from stock issues, repurchases | C70: 0 | D70: 0 | E70: 0 | F70: 0 | G70: 0 | H70: <-- =G37-F37
A71: Dividends paid | C71: =C23 -> -134.2194758 | D71: =D23 -> -159.1882594 | E71: =E23 -> -189.1639601 | F71: =F23 -> -224.801239 | G71: =G23 -> -267.2343921 | H71: <-- =G23
A72: Net cash from financing activities | C72: =SUM(C69:C71) -> -134.2194758 | D72: =SUM(D69:D71) -> -119.7959947 | E72: =SUM(E69:E71) -> -127.7679201 | F72: =SUM(F69:F71) -> -148.9304779 | G72: =SUM(G69:G71) -> -173.6623842 | H72: <-- =SUM(G69:G71)
H73: <--
A74: Net increase in cash and cash equivalents | C74: =C72+C66+C60 -> 10.21947582 | D74: =D72+D66+D60 -> -10.21947582 | E74: =E72+E66+E60 -> 0 | F74: =F72+F66+F60 -> 0 | G74: =G72+G66+G60 -> 0 | H74: <-- =G72+G66+G60
A75: Check: changes in cash and mkt. securities | C75: =C27-B27 -> -69.78052418 | D75: =D27-C27 -> -10.21947582 | E75: =E27-D27 -> 0 | F75: =F27-E27 -> 0 | G75: =G27-F27 -> 0 | H75: <-- =G27-F27
C76: **Won't be even due to comparison to pre-forecast period
